{"text_format":"2","workbook":"xlsx","n_sheets":10,"sheets":["HH Package 1","HH Package 2","HH Package 3","HH Package 4","HH Package 5","CTV 1","CTV 2","CTV3","CTV4","CTV5"],"not_rendered":{"charts":0,"images":0,"macros":0,"external_links":1,"defined_names":0,"comments":0,"pivot_tables":0},"unopened":[],"bounds":{"document_bytes":16777216,"sheet_cells":100000,"run_cost":"one","rows_first":2000,"rows_last":500,"rows_between":2000,"halvings":0,"cell_chars":16384,"cell_head_chars":4096},"cells_cut":0,"cells_raw":0,"read":"whole","date_system":"1900"}

{"sheet":"HH Package 1","index":0,"n_rows":50,"n_cols":9,"rows_kept":50,"cut":false,"hidden":false,"merged":[[1,1,1,5],[1,6,1,8]]}
[]
[null,"IPL 2026 | Handheld Devices + Web",{"$nulls":4},"25 Cr Package"]
[null,"Type","Classification","Ad Assets","Targeting","Duration\n (in Secs)","Impressions -10s (Mn) / Total Exposures","CPM-10s / Per Exp Cost (INR)","Net Cost\n (INR Cr.)"]
[null,"Live","Video","Mid-Roll / Pre-Roll","ROS",10,490,{"$f":"'[1]HH Rate Card'!D4","v":250},{"$f":"G4*H4/10^4","v":12.25}]
[null,"Live","Video","Mid-Roll / Pre-Roll","Targeted L1",10,{"$f":"G4*25%","v":122.5},{"$f":"'[1]HH Rate Card'!D5","v":315},3.8587500000000001]
[null,"Highlights + VOD","Video","Mid-Roll / Pre-Roll","ROS",10,{"$f":"G4*10%","v":49},{"$f":"'[1]HH Rate Card'!D12","v":190},0.93100000000000005]
[null,"Display Asset","Display","Masthead (on CPM basis)","ROS","NA",500,{"$f":"'[1]HH Rate Card'!D18","v":75},3.75]
[null,"Display Asset","Display","Fence / Frame / Social Banner","ROS","NA",{"$f":"G4*15%","v":73.5},{"$f":"'[1]HH Rate Card'!D18","v":75},0.55125000000000002]
[null,"Live","Display","Squeezeups","ROS","NA",{"$f":"2*74","v":148},{"$f":"'[1]HH Rate Card'!D21","v":250000},{"$f":"G9*H9/10^7","v":3.7}]
[{"$nulls":5},"Total Cost (Net) : INR Cr",null,null,{"$f":"SUM(I4:I9)","v":25.041}]
[]
[null,"Please Note:"]
[null,"Taxes extra as applicable."]
[null,"This package is subject to BCCI / broadcast / streaming guidelines."]
[null,"Pre-Roll duration - upto 10 sec is allowed"]
[null,"Secondage mentioned for FCT & number of exposures mentioned for graphical elements and segment"]
[null,"Matches considered for Live entitlements, Days considered for PPL entitlements, Episodes considered for Surround Shows, etc."]
[null,"Matches count and PPL Days is subject to final schedule from Board / channel broadcast plan & the days / FCT may change accordingly"]
[null,"No Spot placement request would be entertained"]
[null,"Pushbacks/Squeezeups duration - Max 5 secs"]
[null,"For regional channels, the commercial should be in the respective regional language"]
[null,"Channel mix may change without prior notice"]
[null,"^ Indicative; Subject to Tournament Schedule; Total FCT/Exposures shall vary accordingly"]
[null,"Segments / VODs are limited and hence available on a first come first serve basis only"]
[null,"The Segment and VOD finalised for the advertiser has to be same"]
[null,"Billing will be as per JioStar numbers only; 3rd party trackers should be placed only to track overall numbers"]
[null,"All pricing/costs are Net to JioStar"]
[null,"All the creatives as per specs have to be QC and S&P approved 5 business days in advance of going live"]
[null,"Package is subject to ICC / JioStar guidelines"]
[null,"Inventory in HLs / VODs is on non-exclusive basis"]
[null,"The client understands and agrees that this deal cannot be cancelled either in full or part, at any given point of time from the confirmation time"]
[null,"No per creative / per feed impression guarantee"]
[null,"Segment Duration - 30-45 secs"]
[null,"Segment can be bundled with Co Presenting level only that too if at least 2 platforms (out of HH, CTV, Linear TV) are bought together"]
[]
[null,"Guidelines:"]
[null,"1. CTL premium position to be offered at 25% higher than standard CTL rates."]
[null,"2. HH Breakout Masthead will be offered at 10% higher than HH Regular Masthead rates on CPM."]
[null,"3. PPL Mid Show inventory is only for certain PPL Partners, please check with PRS on availability"]
[null,"4. For generic SUPs a minimum of 14 matches need to be bought (which can be consecutive or all league matches of a franchise)."]
[null,"5. Impression dispersion to follow supply estimates."]
[null,"6. Feasibility to be checked with Customization Team for all plans."]
[null,"7. No match wise commitment"]
[null,"8. No geo specific impressions commitment within a cohort bought by the advertiser"]
[null,"9. Features should be augmented with 1:1 spends on video inventory, if features spends are below 20 Cr in Digital (HH+CTV)."]
[]
[null,"HH Guidelines:"]
[null,"1. For Playoffs buy, a total of minimum 5 matches to be bought"]
[null,"2. Key matches to be bought in consecutive manner"]
[null,"- Key matches : 8 matches (Opening week 4 PT matches + 4 PO)"]

{"sheet":"HH Package 2","index":1,"n_rows":50,"n_cols":9,"rows_kept":50,"cut":false,"hidden":false,"merged":[[1,1,1,5],[1,6,1,8]]}
[]
[null,"IPL 2026 | Handheld Devices + Web",{"$nulls":4},"40 Cr Package"]
[null,"Type","Classification","Ad Assets","Targeting","Duration\n (in Secs)","Impressions -10s (Mn) / Total Exposures","CPM-10s / Per Exp Cost (INR)","Net Cost\n (INR Cr.)"]
[null,"Live","Video","Mid-Roll / Pre-Roll","ROS",10,835,{"$f":"'[1]HH Rate Card'!D4","v":250},{"$f":"G4*H4/10^4","v":20.875}]
[null,"Live","Video","Mid-Roll / Pre-Roll","Targeted L1",10,{"$f":"G4*25%","v":208.75},{"$f":"'[1]HH Rate Card'!D5","v":315},6.5756249999999996]
[null,"Highlights + VOD","Video","Mid-Roll / Pre-Roll","ROS",10,{"$f":"G4*10%","v":83.5},{"$f":"'[1]HH Rate Card'!D12","v":190},1.5865]
[null,"Display Asset","Display","Masthead (on CPM basis)","ROS","NA",600,{"$f":"'[1]HH Rate Card'!D18","v":75},4.5]
[null,"Display Asset","Display","Fence / Frame / Social Banner","ROS","NA",{"$f":"G4*15%","v":125.25},{"$f":"'[1]HH Rate Card'!D18","v":75},0.93937499999999996]
[null,"Live","Display","Squeezeups","ROS","NA",{"$f":"3*74","v":222},{"$f":"'[1]HH Rate Card'!D21","v":250000},{"$f":"G9*H9/10^7","v":5.55}]
[{"$nulls":5},"Total Cost (Net) : INR Cr",null,null,{"$f":"SUM(I4:I9)","v":40.026499999999999}]
[]
[null,"Please Note:"]
[null,"Taxes extra as applicable."]
[null,"This package is subject to BCCI / broadcast / streaming guidelines."]
[null,"Pre-Roll duration - upto 10 sec is allowed"]
[null,"Secondage mentioned for FCT & number of exposures mentioned for graphical elements and segment"]
[null,"Matches considered for Live entitlements, Days considered for PPL entitlements, Episodes considered for Surround Shows, etc."]
[null,"Matches count and PPL Days is subject to final schedule from Board / channel broadcast plan & the days / FCT may change accordingly"]
[null,"No Spot placement request would be entertained"]
[null,"Pushbacks/Squeezeups duration - Max 5 secs"]
[null,"For regional channels, the commercial should be in the respective regional language"]
[null,"Channel mix may change without prior notice"]
[null,"^ Indicative; Subject to Tournament Schedule; Total FCT/Exposures shall vary accordingly"]
[null,"Segments / VODs are limited and hence available on a first come first serve basis only"]
[null,"The Segment and VOD finalised for the advertiser has to be same"]
[null,"Billing will be as per JioStar numbers only; 3rd party trackers should be placed only to track overall numbers"]
[null,"All pricing/costs are Net to JioStar"]
[null,"All the creatives as per specs have to be QC and S&P approved 5 business days in advance of going live"]
[null,"Package is subject to ICC / JioStar guidelines"]
[null,"Inventory in HLs / VODs is on non-exclusive basis"]
[null,"The client understands and agrees that this deal cannot be cancelled either in full or part, at any given point of time from the confirmation time"]
[null,"No per creative / per feed impression guarantee"]
[null,"Segment Duration - 30-45 secs"]
[null,"Segment can be bundled with Co Presenting level only that too if at least 2 platforms (out of HH, CTV, Linear TV) are bought together"]
[]
[null,"Guidelines:"]
[null,"1. CTL premium position to be offered at 25% higher than standard CTL rates."]
[null,"2. HH Breakout Masthead will be offered at 10% higher than HH Regular Masthead rates on CPM."]
[null,"3. PPL Mid Show inventory is only for certain PPL Partners, please check with PRS on availability"]
[null,"4. For generic SUPs a minimum of 14 matches need to be bought (which can be consecutive or all league matches of a franchise)."]
[null,"5. Impression dispersion to follow supply estimates."]
[null,"6. Feasibility to be checked with Customization Team for all plans."]
[null,"7. No match wise commitment"]
[null,"8. No geo specific impressions commitment within a cohort bought by the advertiser"]
[null,"9. Features should be augmented with 1:1 spends on video inventory, if features spends are below 20 Cr in Digital (HH+CTV)."]
[]
[null,"HH Guidelines:"]
[null,"1. For Playoffs buy, a total of minimum 5 matches to be bought"]
[null,"2. Key matches to be bought in consecutive manner"]
[null,"- Key matches : 8 matches (Opening week 4 PT matches + 4 PO)"]

{"sheet":"HH Package 3","index":2,"n_rows":50,"n_cols":9,"rows_kept":50,"cut":false,"hidden":false,"merged":[[1,1,1,5],[1,6,1,8]]}
[]
[null,"IPL 2026 | Handheld Devices + Web",{"$nulls":4},"60 Cr Package"]
[null,"Type","Classification","Ad Assets","Targeting","Duration\n (in Secs)","Impressions -10s (Mn) / Total Exposures","CPM-10s / Per Exp Cost (INR)","Net Cost\n (INR Cr.)"]
[null,"Live","Video","Mid-Roll / Pre-Roll","ROS",10,1370,{"$f":"'[1]HH Rate Card'!D4","v":250},{"$f":"G4*H4/10^4","v":34.25}]
[null,"Live","Video","Mid-Roll / Pre-Roll","Targeted L1",10,{"$f":"G4*25%","v":342.5},{"$f":"'[1]HH Rate Card'!D5","v":315},10.78875]
[null,"Highlights + VOD","Video","Mid-Roll / Pre-Roll","ROS",10,{"$f":"G4*10%","v":137},{"$f":"'[1]HH Rate Card'!D12","v":190},2.6030000000000002]
[null,"Display Asset","Display","Masthead (on CPM basis)","ROS","NA",700,{"$f":"'[1]HH Rate Card'!D18","v":75},5.25]
[null,"Display Asset","Display","Fence / Frame / Social Banner","ROS","NA",{"$f":"G4*15%","v":205.5},{"$f":"'[1]HH Rate Card'!D18","v":75},1.54125]
[null,"Live","Display","Squeezeups","ROS","NA",{"$f":"3*74","v":222},{"$f":"'[1]HH Rate Card'!D21","v":250000},{"$f":"G9*H9/10^7","v":5.55}]
[{"$nulls":5},"Total Cost (Net) : INR Cr",null,null,{"$f":"SUM(I4:I9)","v":59.982999999999997}]
[]
[null,"Please Note:"]
[null,"Taxes extra as applicable."]
[null,"This package is subject to BCCI / broadcast / streaming guidelines."]
[null,"Pre-Roll duration - upto 10 sec is allowed"]
[null,"Secondage mentioned for FCT & number of exposures mentioned for graphical elements and segment"]
[null,"Matches considered for Live entitlements, Days considered for PPL entitlements, Episodes considered for Surround Shows, etc."]
[null,"Matches count and PPL Days is subject to final schedule from Board / channel broadcast plan & the days / FCT may change accordingly"]
[null,"No Spot placement request would be entertained"]
[null,"Pushbacks/Squeezeups duration - Max 5 secs"]
[null,"For regional channels, the commercial should be in the respective regional language"]
[null,"Channel mix may change without prior notice"]
[null,"^ Indicative; Subject to Tournament Schedule; Total FCT/Exposures shall vary accordingly"]
[null,"Segments / VODs are limited and hence available on a first come first serve basis only"]
[null,"The Segment and VOD finalised for the advertiser has to be same"]
[null,"Billing will be as per JioStar numbers only; 3rd party trackers should be placed only to track overall numbers"]
[null,"All pricing/costs are Net to JioStar"]
[null,"All the creatives as per specs have to be QC and S&P approved 5 business days in advance of going live"]
[null,"Package is subject to ICC / JioStar guidelines"]
[null,"Inventory in HLs / VODs is on non-exclusive basis"]
[null,"The client understands and agrees that this deal cannot be cancelled either in full or part, at any given point of time from the confirmation time"]
[null,"No per creative / per feed impression guarantee"]
[null,"Segment Duration - 30-45 secs"]
[null,"Segment can be bundled with Co Presenting level only that too if at least 2 platforms (out of HH, CTV, Linear TV) are bought together"]
[]
[null,"Guidelines:"]
[null,"1. CTL premium position to be offered at 25% higher than standard CTL rates."]
[null,"2. HH Breakout Masthead will be offered at 10% higher than HH Regular Masthead rates on CPM."]
[null,"3. PPL Mid Show inventory is only for certain PPL Partners, please check with PRS on availability"]
[null,"4. For generic SUPs a minimum of 14 matches need to be bought (which can be consecutive or all league matches of a franchise)."]
[null,"5. Impression dispersion to follow supply estimates."]
[null,"6. Feasibility to be checked with Customization Team for all plans."]
[null,"7. No match wise commitment"]
[null,"8. No geo specific impressions commitment within a cohort bought by the advertiser"]
[null,"9. Features should be augmented with 1:1 spends on video inventory, if features spends are below 20 Cr in Digital (HH+CTV)."]
[]
[null,"HH Guidelines:"]
[null,"1. For Playoffs buy, a total of minimum 5 matches to be bought"]
[null,"2. Key matches to be bought in consecutive manner"]
[null,"- Key matches : 8 matches (Opening week 4 PT matches + 4 PO)"]

{"sheet":"HH Package 4","index":3,"n_rows":50,"n_cols":9,"rows_kept":50,"cut":false,"hidden":false,"merged":[[1,1,1,5],[1,6,1,8]]}
[]
[null,"IPL 2026 | Handheld Devices + Web",{"$nulls":4},"75 Cr Package"]
[null,"Type","Classification","Ad Assets","Targeting","Duration\n (in Secs)","Impressions -10s (Mn) / Total Exposures","CPM-10s / Per Exp Cost (INR)","Net Cost\n (INR Cr.)"]
[null,"Live","Video","Mid-Roll / Pre-Roll","ROS",10,1658,{"$f":"'[1]HH Rate Card'!D4","v":250},{"$f":"G4*H4/10^4","v":41.45}]
[null,"Live","Video","Mid-Roll / Pre-Roll","Targeted L1",10,{"$f":"G4*25%","v":414.5},{"$f":"'[1]HH Rate Card'!D5","v":315},13.056749999999999]
[null,"Highlights + VOD","Video","Mid-Roll / Pre-Roll","ROS",10,{"$f":"G4*10%","v":165.8},{"$f":"'[1]HH Rate Card'!D12","v":190},3.1502000000000003]
[null,"Display Asset","Display","Masthead (on CPM basis)","ROS","NA",1075,{"$f":"'[1]HH Rate Card'!D18","v":75},8.0625]
[null,"Display Asset","Display","Fence / Frame / Social Banner","ROS","NA",{"$f":"G4*15%","v":248.7},{"$f":"'[1]HH Rate Card'!D18","v":75},1.8652500000000001]
[null,"Live","Display","Squeezeups","ROS","NA",{"$f":"4*74","v":296},{"$f":"'[1]HH Rate Card'!D21","v":250000},{"$f":"G9*H9/10^7","v":7.4}]
[{"$nulls":5},"Total Cost (Net) : INR Cr",null,null,{"$f":"SUM(I4:I9)","v":74.984700000000004}]
[]
[null,"Please Note:"]
[null,"Taxes extra as applicable."]
[null,"This package is subject to BCCI / broadcast / streaming guidelines."]
[null,"Pre-Roll duration - upto 10 sec is allowed"]
[null,"Secondage mentioned for FCT & number of exposures mentioned for graphical elements and segment"]
[null,"Matches considered for Live entitlements, Days considered for PPL entitlements, Episodes considered for Surround Shows, etc."]
[null,"Matches count and PPL Days is subject to final schedule from Board / channel broadcast plan & the days / FCT may change accordingly"]
[null,"No Spot placement request would be entertained"]
[null,"Pushbacks/Squeezeups duration - Max 5 secs"]
[null,"For regional channels, the commercial should be in the respective regional language"]
[null,"Channel mix may change without prior notice"]
[null,"^ Indicative; Subject to Tournament Schedule; Total FCT/Exposures shall vary accordingly"]
[null,"Segments / VODs are limited and hence available on a first come first serve basis only"]
[null,"The Segment and VOD finalised for the advertiser has to be same"]
[null,"Billing will be as per JioStar numbers only; 3rd party trackers should be placed only to track overall numbers"]
[null,"All pricing/costs are Net to JioStar"]
[null,"All the creatives as per specs have to be QC and S&P approved 5 business days in advance of going live"]
[null,"Package is subject to ICC / JioStar guidelines"]
[null,"Inventory in HLs / VODs is on non-exclusive basis"]
[null,"The client understands and agrees that this deal cannot be cancelled either in full or part, at any given point of time from the confirmation time"]
[null,"No per creative / per feed impression guarantee"]
[null,"Segment Duration - 30-45 secs"]
[null,"Segment can be bundled with Co Presenting level only that too if at least 2 platforms (out of HH, CTV, Linear TV) are bought together"]
[]
[null,"Guidelines:"]
[null,"1. CTL premium position to be offered at 25% higher than standard CTL rates."]
[null,"2. HH Breakout Masthead will be offered at 10% higher than HH Regular Masthead rates on CPM."]
[null,"3. PPL Mid Show inventory is only for certain PPL Partners, please check with PRS on availability"]
[null,"4. For generic SUPs a minimum of 14 matches need to be bought (which can be consecutive or all league matches of a franchise)."]
[null,"5. Impression dispersion to follow supply estimates."]
[null,"6. Feasibility to be checked with Customization Team for all plans."]
[null,"7. No match wise commitment"]
[null,"8. No geo specific impressions commitment within a cohort bought by the advertiser"]
[null,"9. Features should be augmented with 1:1 spends on video inventory, if features spends are below 20 Cr in Digital (HH+CTV)."]
[]
[null,"HH Guidelines:"]
[null,"1. For Playoffs buy, a total of minimum 5 matches to be bought"]
[null,"2. Key matches to be bought in consecutive manner"]
[null,"- Key matches : 8 matches (Opening week 4 PT matches + 4 PO)"]

{"sheet":"HH Package 5","index":4,"n_rows":50,"n_cols":9,"rows_kept":50,"cut":false,"hidden":false,"merged":[[1,1,1,5],[1,6,1,8]]}
[]
[null,"IPL 2026 | Handheld Devices + Web",{"$nulls":4},"100 Cr Package"]
[null,"Type","Classification","Ad Assets","Targeting","Duration\n (in Secs)","Impressions -10s (Mn) / Total Exposures","CPM-10s / Per Exp Cost (INR)","Net Cost\n (INR Cr.)"]
[null,"Live","Video","Mid-Roll / Pre-Roll","ROS",10,2355,{"$f":"'[1]HH Rate Card'!D4","v":250},{"$f":"G4*H4/10^4","v":58.875}]
[null,"Live","Video","Mid-Roll / Pre-Roll","Targeted L1",10,{"$f":"G4*25%","v":588.75},{"$f":"'[1]HH Rate Card'!D5","v":315},18.545625000000001]
[null,"Highlights + VOD","Video","Mid-Roll / Pre-Roll","ROS",10,{"$f":"G4*10%","v":235.5},{"$f":"'[1]HH Rate Card'!D12","v":190},4.4744999999999999]
[null,"Display Asset","Display","Masthead (on CPM basis)","ROS","NA",1075,{"$f":"'[1]HH Rate Card'!D18","v":75},8.0625]
[null,"Display Asset","Display","Fence / Frame / Social Banner","ROS","NA",{"$f":"G4*15%","v":353.25},{"$f":"'[1]HH Rate Card'!D18","v":75},2.649375]
[null,"Live","Display","Squeezeups","ROS","NA",{"$f":"4*74","v":296},{"$f":"'[1]HH Rate Card'!D21","v":250000},{"$f":"G9*H9/10^7","v":7.4}]
[{"$nulls":5},"Total Cost (Net) : INR Cr",null,null,{"$f":"SUM(I4:I9)","v":100.00700000000002}]
[]
[null,"Please Note:"]
[null,"Taxes extra as applicable."]
[null,"This package is subject to BCCI / broadcast / streaming guidelines."]
[null,"Pre-Roll duration - upto 10 sec is allowed"]
[null,"Secondage mentioned for FCT & number of exposures mentioned for graphical elements and segment"]
[null,"Matches considered for Live entitlements, Days considered for PPL entitlements, Episodes considered for Surround Shows, etc."]
[null,"Matches count and PPL Days is subject to final schedule from Board / channel broadcast plan & the days / FCT may change accordingly"]
[null,"No Spot placement request would be entertained"]
[null,"Pushbacks/Squeezeups duration - Max 5 secs"]
[null,"For regional channels, the commercial should be in the respective regional language"]
[null,"Channel mix may change without prior notice"]
[null,"^ Indicative; Subject to Tournament Schedule; Total FCT/Exposures shall vary accordingly"]
[null,"Segments / VODs are limited and hence available on a first come first serve basis only"]
[null,"The Segment and VOD finalised for the advertiser has to be same"]
[null,"Billing will be as per JioStar numbers only; 3rd party trackers should be placed only to track overall numbers"]
[null,"All pricing/costs are Net to JioStar"]
[null,"All the creatives as per specs have to be QC and S&P approved 5 business days in advance of going live"]
[null,"Package is subject to ICC / JioStar guidelines"]
[null,"Inventory in HLs / VODs is on non-exclusive basis"]
[null,"The client understands and agrees that this deal cannot be cancelled either in full or part, at any given point of time from the confirmation time"]
[null,"No per creative / per feed impression guarantee"]
[null,"Segment Duration - 30-45 secs"]
[null,"Segment can be bundled with Co Presenting level only that too if at least 2 platforms (out of HH, CTV, Linear TV) are bought together"]
[]
[null,"Guidelines:"]
[null,"1. CTL premium position to be offered at 25% higher than standard CTL rates."]
[null,"2. HH Breakout Masthead will be offered at 10% higher than HH Regular Masthead rates on CPM."]
[null,"3. PPL Mid Show inventory is only for certain PPL Partners, please check with PRS on availability"]
[null,"4. For generic SUPs a minimum of 14 matches need to be bought (which can be consecutive or all league matches of a franchise)."]
[null,"5. Impression dispersion to follow supply estimates."]
[null,"6. Feasibility to be checked with Customization Team for all plans."]
[null,"7. No match wise commitment"]
[null,"8. No geo specific impressions commitment within a cohort bought by the advertiser"]
[null,"9. Features should be augmented with 1:1 spends on video inventory, if features spends are below 20 Cr in Digital (HH+CTV)."]
[]
[null,"HH Guidelines:"]
[null,"1. For Playoffs buy, a total of minimum 5 matches to be bought"]
[null,"2. Key matches to be bought in consecutive manner"]
[null,"- Key matches : 8 matches (Opening week 4 PT matches + 4 PO)"]

{"sheet":"CTV 1","index":5,"n_rows":74,"n_cols":9,"rows_kept":74,"cut":false,"hidden":false,"merged":[[1,1,1,5],[1,6,1,8],[62,1,63,1],[64,1,65,1],[66,1,67,1],[69,1,70,1]]}
[]
[null,"IPL 2026 | Connected TV",{"$nulls":4},"60 Cr Package"]
[null,"Type","Classification","Ad Assets","Targeting","Duration\n (in Secs)","Impressions -10s (Mn) / Total Exposures","CPM-10s / Per Exp Cost (INR)","Net Cost\n (INR Cr.)"]
[null,"Live","Video","Mid-Roll*","ROS",10,{"$f":"I4/H4*10^4","v":835.66666666666663},{"$f":"'[1]CTV Rate Card'!D4","v":600},{"$f":"I8-I6-I7","v":50.14}]
[null,"Live","Video","Pre-Roll","ROS",10,{"$f":"G4*3%","v":25.069999999999997},{"$f":"'[1]CTV Rate Card'!D8","v":800},{"$f":"G5*H5/10^4","v":2.0055999999999998}]
[null,"Display Asset","Display","Masthead (on CPM basis)","ROS","NA",80,{"$f":"'[1]CTV Rate Card'!D19","v":400},3.2]
[null,"Live","Display","Squeezeups","ROS","NA",{"$f":"2*74","v":148},{"$f":"'[1]CTV Rate Card'!D21","v":450000},{"$f":"G7*H7/10^7","v":6.66}]
[{"$nulls":5},"Total Cost (Net) : INR Cr",null,null,60]
[null,"*For CTV, block match buy rates are used."]
[]
[null,"Please Note:"]
[null,"Taxes extra as applicable."]
[null,"This package is subject to BCCI / broadcast / streaming guidelines."]
[null,"Pre-Roll duration - upto 10 sec is allowed"]
[null,"Secondage mentioned for FCT & number of exposures mentioned for graphical elements and segment"]
[null,"Matches considered for Live entitlements, Days considered for PPL entitlements, Episodes considered for Surround Shows, etc."]
[null,"Matches count and PPL Days is subject to final schedule from Board / channel broadcast plan & the days / FCT may change accordingly"]
[null,"No Spot placement request would be entertained"]
[null,"Pushbacks/Squeezeups duration - Max 5 secs"]
[null,"For regional channels, the commercial should be in the respective regional language"]
[null,"Channel mix may change without prior notice"]
[null,"^ Indicative; Subject to Tournament Schedule; Total FCT/Exposures shall vary accordingly"]
[null,"Segments / VODs are limited and hence available on a first come first serve basis only"]
[null,"The Segment and VOD finalised for the advertiser has to be same"]
[null,"Billing will be as per JioStar numbers only; 3rd party trackers should be placed only to track overall numbers"]
[null,"All pricing/costs are Net to JioStar"]
[null,"All the creatives as per specs have to be QC and S&P approved 5 business days in advance of going live"]
[null,"Package is subject to ICC / JioStar guidelines"]
[null,"Inventory in HLs / VODs is on non-exclusive basis"]
[null,"The client understands and agrees that this deal cannot be cancelled either in full or part, at any given point of time from the confirmation time"]
[null,"No per creative / per feed impression guarantee"]
[null,"Segment Duration - 30-45 secs"]
[null,"Segment can be bundled with Co Presenting level only that too if at least 2 platforms (out of HH, CTV, Linear TV) are bought together"]
[]
[null,"Guidelines:"]
[null,"1. CTL premium position to be offered at 25% higher than standard CTL rates."]
[null,"2. PPL Mid Show inventory is only for certain PPL Partners, please check with PRS on availability"]
[null,"3. For generic SUPs a minimum of 14 matches need to be bought (which can be consecutive or all league matches of a franchise)."]
[null,"4. Impression dispersion to follow supply estimates."]
[null,"5. Feasibility to be checked with Customization Team for all plans."]
[null,"6. No match wise commitment"]
[null,"7. No geo specific impressions commitment within a cohort bought by the advertiser"]
[null,"8. Features should be augmented with 1:1 spends on video inventory, if features spends are below 20 Cr in Digital (HH+CTV)."]
[]
[null,"CTV Guidelines:"]
[]
[null,"CTV guidelines for block pricing applicability i.e. 600 CPM"]
[null,"1. Minimum 5 matches to be bought"]
[null,"2. Matches to be bought in minimum block size of 5 matches each"]
[null," - For e.g. 12 matches means 2 blocks, at 15, means 3 blocks & so on"]
[null,"3. Alternate matches can be bought on the condition that advertiser buys a min of 25 league matches in alternate manner"]
[]
[null,"CTV Other Guidelines"]
[null,"1. For any playoffs matches selection, a total of minimum 25 matches to be bought and last 15 has to be consecutive matches"]
[null,"2. For any Opening PT matches (total of 4 matches), a total of minimum 15 matches to be bought and first 10 has to be consecutive matches"]
[null,"3. Impressions dispersion to follow supply estimates"]
[]
[null,"CTV Live Preroll Guidelines"]
[null,"1. Standalone PR deals not allowed"]
[null,"2. Max 5% share of video impressions allowed on Live Preroll for Partners, and 3% for others ; at differential CPM as given above"]
[]
[null,"Match Selection scenarios","# of Min req matches","Consecutive Matches Rule","Rest of Matches in Block of 5 matches","Applicable Rate"]
[null,"Any Matches (excl. Opening PT & POs)",5,5,"Yes",600]
[null,null,5,"-","-",900]
[null,"Any of Opening week PT matches",15,"First 10","Yes",600]
[null,null,15,"First 10","-",900]
[null,"Any of 4 POs",25,"Last 15","Yes",600]
[null,null,25,"Last 15","-",900]
[null,"Any of Opening week PT & Any of 4 POs",25,"First 10 + Last 15","NA",600]
[null,"Any of Opening week PT & Any of 4 POs + Any other match",25,"First 10 + Last 15","Yes",600]
[null,null,25,"First 10 + Last 15","-",900]
[null,"Alternate league matches",25,"NA","NA",600]
[]
[null,"NA - Not applicable"]

{"sheet":"CTV 2","index":6,"n_rows":74,"n_cols":9,"rows_kept":74,"cut":false,"hidden":false,"merged":[[1,1,1,5],[1,6,1,8],[62,1,63,1],[64,1,65,1],[66,1,67,1],[69,1,70,1]]}
[]
[null,"IPL 2026 | Connected TV",{"$nulls":4},"75 Cr Package"]
[null,"Type","Classification","Ad Assets","Targeting","Duration\n (in Secs)","Impressions -10s (Mn) / Total Exposures","CPM-10s / Per Exp Cost (INR)","Net Cost\n (INR Cr.)"]
[null,"Live","Video","Mid-Roll*","ROS",10,{"$f":"I4/H4*10^4","v":1023.5000000000001},{"$f":"'[1]CTV Rate Card'!D4","v":600},{"$f":"I8-I6-I7","v":61.410000000000004}]
[null,"Live","Video","Pre-Roll","ROS",10,{"$f":"G4*3%","v":30.705000000000002},{"$f":"'[1]CTV Rate Card'!D8","v":800},{"$f":"G5*H5/10^4","v":2.4563999999999999}]
[null,"Display Asset","Display","Masthead (on CPM basis)","ROS","NA",90,{"$f":"'[1]CTV Rate Card'!D19","v":400},3.6]
[null,"Live","Display","Squeezeups","ROS","NA",{"$f":"3*74","v":222},{"$f":"'[1]CTV Rate Card'!D21","v":450000},{"$f":"G7*H7/10^7","v":9.99}]
[{"$nulls":5},"Total Cost (Net) : INR Cr",null,null,75]
[null,"*For CTV, block match buy rates are used."]
[]
[null,"Please Note:"]
[null,"Taxes extra as applicable."]
[null,"This package is subject to BCCI / broadcast / streaming guidelines."]
[null,"Pre-Roll duration - upto 10 sec is allowed"]
[null,"Secondage mentioned for FCT & number of exposures mentioned for graphical elements and segment"]
[null,"Matches considered for Live entitlements, Days considered for PPL entitlements, Episodes considered for Surround Shows, etc."]
[null,"Matches count and PPL Days is subject to final schedule from Board / channel broadcast plan & the days / FCT may change accordingly"]
[null,"No Spot placement request would be entertained"]
[null,"Pushbacks/Squeezeups duration - Max 5 secs"]
[null,"For regional channels, the commercial should be in the respective regional language"]
[null,"Channel mix may change without prior notice"]
[null,"^ Indicative; Subject to Tournament Schedule; Total FCT/Exposures shall vary accordingly"]
[null,"Segments / VODs are limited and hence available on a first come first serve basis only"]
[null,"The Segment and VOD finalised for the advertiser has to be same"]
[null,"Billing will be as per JioStar numbers only; 3rd party trackers should be placed only to track overall numbers"]
[null,"All pricing/costs are Net to JioStar"]
[null,"All the creatives as per specs have to be QC and S&P approved 5 business days in advance of going live"]
[null,"Package is subject to ICC / JioStar guidelines"]
[null,"Inventory in HLs / VODs is on non-exclusive basis"]
[null,"The client understands and agrees that this deal cannot be cancelled either in full or part, at any given point of time from the confirmation time"]
[null,"No per creative / per feed impression guarantee"]
[null,"Segment Duration - 30-45 secs"]
[null,"Segment can be bundled with Co Presenting level only that too if at least 2 platforms (out of HH, CTV, Linear TV) are bought together"]
[]
[null,"Guidelines:"]
[null,"1. CTL premium position to be offered at 25% higher than standard CTL rates."]
[null,"2. PPL Mid Show inventory is only for certain PPL Partners, please check with PRS on availability"]
[null,"3. For generic SUPs a minimum of 14 matches need to be bought (which can be consecutive or all league matches of a franchise)."]
[null,"4. Impression dispersion to follow supply estimates."]
[null,"5. Feasibility to be checked with Customization Team for all plans."]
[null,"6. No match wise commitment"]
[null,"7. No geo specific impressions commitment within a cohort bought by the advertiser"]
[null,"8. Features should be augmented with 1:1 spends on video inventory, if features spends are below 20 Cr in Digital (HH+CTV)."]
[]
[null,"CTV Guidelines:"]
[]
[null,"CTV guidelines for block pricing applicability i.e. 600 CPM"]
[null,"1. Minimum 5 matches to be bought"]
[null,"2. Matches to be bought in minimum block size of 5 matches each"]
[null," - For e.g. 12 matches means 2 blocks, at 15, means 3 blocks & so on"]
[null,"3. Alternate matches can be bought on the condition that advertiser buys a min of 25 league matches in alternate manner"]
[]
[null,"CTV Other Guidelines"]
[null,"1. For any playoffs matches selection, a total of minimum 25 matches to be bought and last 15 has to be consecutive matches"]
[null,"2. For any Opening PT matches (total of 4 matches), a total of minimum 15 matches to be bought and first 10 has to be consecutive matches"]
[null,"3. Impressions dispersion to follow supply estimates"]
[]
[null,"CTV Live Preroll Guidelines"]
[null,"1. Standalone PR deals not allowed"]
[null,"2. Max 5% share of video impressions allowed on Live Preroll for Partners, and 3% for others ; at differential CPM as given above"]
[]
[null,"Match Selection scenarios","# of Min req matches","Consecutive Matches Rule","Rest of Matches in Block of 5 matches","Applicable Rate"]
[null,"Any Matches (excl. Opening PT & POs)",5,5,"Yes",600]
[null,null,5,"-","-",900]
[null,"Any of Opening week PT matches",15,"First 10","Yes",600]
[null,null,15,"First 10","-",900]
[null,"Any of 4 POs",25,"Last 15","Yes",600]
[null,null,25,"Last 15","-",900]
[null,"Any of Opening week PT & Any of 4 POs",25,"First 10 + Last 15","NA",600]
[null,"Any of Opening week PT & Any of 4 POs + Any other match",25,"First 10 + Last 15","Yes",600]
[null,null,25,"First 10 + Last 15","-",900]
[null,"Alternate league matches",25,"NA","NA",600]
[]
[null,"NA - Not applicable"]

{"sheet":"CTV3","index":7,"n_rows":74,"n_cols":9,"rows_kept":74,"cut":false,"hidden":false,"merged":[[1,1,1,5],[1,6,1,8],[62,1,63,1],[64,1,65,1],[66,1,67,1],[69,1,70,1]]}
[]
[null,"IPL 2026 | Connected TV",{"$nulls":4},"100 Cr Package"]
[null,"Type","Classification","Ad Assets","Targeting","Duration\n (in Secs)","Impressions -10s (Mn) / Total Exposures","CPM-10s / Per Exp Cost (INR)","Net Cost\n (INR Cr.)"]
[null,"Live","Video","Mid-Roll*","ROS",10,{"$f":"I4/H4*10^4","v":1420.1666666666667},{"$f":"'[1]CTV Rate Card'!D4","v":600},{"$f":"I8-I6-I7","v":85.210000000000008}]
[null,"Live","Video","Pre-Roll","ROS",10,{"$f":"G4*3%","v":42.605000000000004},{"$f":"'[1]CTV Rate Card'!D8","v":800},{"$f":"G5*H5/10^4","v":3.4083999999999999}]
[null,"Display Asset","Display","Masthead (on CPM basis)","ROS","NA",120,{"$f":"'[1]CTV Rate Card'!D19","v":400},4.8]
[null,"Live","Display","Squeezeups","ROS","NA",{"$f":"3*74","v":222},{"$f":"'[1]CTV Rate Card'!D21","v":450000},{"$f":"G7*H7/10^7","v":9.99}]
[{"$nulls":5},"Total Cost (Net) : INR Cr",null,null,100]
[null,"*For CTV, block match buy rates are used."]
[]
[null,"Please Note:"]
[null,"Taxes extra as applicable."]
[null,"This package is subject to BCCI / broadcast / streaming guidelines."]
[null,"Pre-Roll duration - upto 10 sec is allowed"]
[null,"Secondage mentioned for FCT & number of exposures mentioned for graphical elements and segment"]
[null,"Matches considered for Live entitlements, Days considered for PPL entitlements, Episodes considered for Surround Shows, etc."]
[null,"Matches count and PPL Days is subject to final schedule from Board / channel broadcast plan & the days / FCT may change accordingly"]
[null,"No Spot placement request would be entertained"]
[null,"Pushbacks/Squeezeups duration - Max 5 secs"]
[null,"For regional channels, the commercial should be in the respective regional language"]
[null,"Channel mix may change without prior notice"]
[null,"^ Indicative; Subject to Tournament Schedule; Total FCT/Exposures shall vary accordingly"]
[null,"Segments / VODs are limited and hence available on a first come first serve basis only"]
[null,"The Segment and VOD finalised for the advertiser has to be same"]
[null,"Billing will be as per JioStar numbers only; 3rd party trackers should be placed only to track overall numbers"]
[null,"All pricing/costs are Net to JioStar"]
[null,"All the creatives as per specs have to be QC and S&P approved 5 business days in advance of going live"]
[null,"Package is subject to ICC / JioStar guidelines"]
[null,"Inventory in HLs / VODs is on non-exclusive basis"]
[null,"The client understands and agrees that this deal cannot be cancelled either in full or part, at any given point of time from the confirmation time"]
[null,"No per creative / per feed impression guarantee"]
[null,"Segment Duration - 30-45 secs"]
[null,"Segment can be bundled with Co Presenting level only that too if at least 2 platforms (out of HH, CTV, Linear TV) are bought together"]
[]
[null,"Guidelines:"]
[null,"1. CTL premium position to be offered at 25% higher than standard CTL rates."]
[null,"2. PPL Mid Show inventory is only for certain PPL Partners, please check with PRS on availability"]
[null,"3. For generic SUPs a minimum of 14 matches need to be bought (which can be consecutive or all league matches of a franchise)."]
[null,"4. Impression dispersion to follow supply estimates."]
[null,"5. Feasibility to be checked with Customization Team for all plans."]
[null,"6. No match wise commitment"]
[null,"7. No geo specific impressions commitment within a cohort bought by the advertiser"]
[null,"8. Features should be augmented with 1:1 spends on video inventory, if features spends are below 20 Cr in Digital (HH+CTV)."]
[]
[null,"CTV Guidelines:"]
[]
[null,"CTV guidelines for block pricing applicability i.e. 600 CPM"]
[null,"1. Minimum 5 matches to be bought"]
[null,"2. Matches to be bought in minimum block size of 5 matches each"]
[null," - For e.g. 12 matches means 2 blocks, at 15, means 3 blocks & so on"]
[null,"3. Alternate matches can be bought on the condition that advertiser buys a min of 25 league matches in alternate manner"]
[]
[null,"CTV Other Guidelines"]
[null,"1. For any playoffs matches selection, a total of minimum 25 matches to be bought and last 15 has to be consecutive matches"]
[null,"2. For any Opening PT matches (total of 4 matches), a total of minimum 15 matches to be bought and first 10 has to be consecutive matches"]
[null,"3. Impressions dispersion to follow supply estimates"]
[]
[null,"CTV Live Preroll Guidelines"]
[null,"1. Standalone PR deals not allowed"]
[null,"2. Max 5% share of video impressions allowed on Live Preroll for Partners, and 3% for others ; at differential CPM as given above"]
[]
[null,"Match Selection scenarios","# of Min req matches","Consecutive Matches Rule","Rest of Matches in Block of 5 matches","Applicable Rate"]
[null,"Any Matches (excl. Opening PT & POs)",5,5,"Yes",600]
[null,null,5,"-","-",900]
[null,"Any of Opening week PT matches",15,"First 10","Yes",600]
[null,null,15,"First 10","-",900]
[null,"Any of 4 POs",25,"Last 15","Yes",600]
[null,null,25,"Last 15","-",900]
[null,"Any of Opening week PT & Any of 4 POs",25,"First 10 + Last 15","NA",600]
[null,"Any of Opening week PT & Any of 4 POs + Any other match",25,"First 10 + Last 15","Yes",600]
[null,null,25,"First 10 + Last 15","-",900]
[null,"Alternate league matches",25,"NA","NA",600]
[]
[null,"NA - Not applicable"]

{"sheet":"CTV4","index":8,"n_rows":74,"n_cols":9,"rows_kept":74,"cut":false,"hidden":false,"merged":[[1,1,1,5],[1,6,1,8],[62,1,63,1],[64,1,65,1],[66,1,67,1],[69,1,70,1]]}
[]
[null,"IPL 2026 | Connected TV",{"$nulls":4},"120 Cr Package"]
[null,"Type","Classification","Ad Assets","Targeting","Duration\n (in Secs)","Impressions -10s (Mn) / Total Exposures","CPM-10s / Per Exp Cost (INR)","Net Cost\n (INR Cr.)"]
[null,"Live","Video","Mid-Roll*","ROS",10,{"$f":"I4/H4*10^4","v":1678},{"$f":"'[1]CTV Rate Card'!D4","v":600},{"$f":"I8-I6-I7","v":100.68}]
[null,"Live","Video","Pre-Roll","ROS",10,{"$f":"G4*3%","v":50.339999999999996},{"$f":"'[1]CTV Rate Card'!D8","v":800},{"$f":"G5*H5/10^4","v":4.0271999999999997}]
[null,"Display Asset","Display","Masthead (on CPM basis)","ROS","NA",150,{"$f":"'[1]CTV Rate Card'!D19","v":400},6]
[null,"Live","Display","Squeezeups","ROS","NA",{"$f":"4*74","v":296},{"$f":"'[1]CTV Rate Card'!D21","v":450000},{"$f":"G7*H7/10^7","v":13.32}]
[{"$nulls":5},"Total Cost (Net) : INR Cr",null,null,120]
[null,"*For CTV, block match buy rates are used."]
[]
[null,"Please Note:"]
[null,"Taxes extra as applicable."]
[null,"This package is subject to BCCI / broadcast / streaming guidelines."]
[null,"Pre-Roll duration - upto 10 sec is allowed"]
[null,"Secondage mentioned for FCT & number of exposures mentioned for graphical elements and segment"]
[null,"Matches considered for Live entitlements, Days considered for PPL entitlements, Episodes considered for Surround Shows, etc."]
[null,"Matches count and PPL Days is subject to final schedule from Board / channel broadcast plan & the days / FCT may change accordingly"]
[null,"No Spot placement request would be entertained"]
[null,"Pushbacks/Squeezeups duration - Max 5 secs"]
[null,"For regional channels, the commercial should be in the respective regional language"]
[null,"Channel mix may change without prior notice"]
[null,"^ Indicative; Subject to Tournament Schedule; Total FCT/Exposures shall vary accordingly"]
[null,"Segments / VODs are limited and hence available on a first come first serve basis only"]
[null,"The Segment and VOD finalised for the advertiser has to be same"]
[null,"Billing will be as per JioStar numbers only; 3rd party trackers should be placed only to track overall numbers"]
[null,"All pricing/costs are Net to JioStar"]
[null,"All the creatives as per specs have to be QC and S&P approved 5 business days in advance of going live"]
[null,"Package is subject to ICC / JioStar guidelines"]
[null,"Inventory in HLs / VODs is on non-exclusive basis"]
[null,"The client understands and agrees that this deal cannot be cancelled either in full or part, at any given point of time from the confirmation time"]
[null,"No per creative / per feed impression guarantee"]
[null,"Segment Duration - 30-45 secs"]
[null,"Segment can be bundled with Co Presenting level only that too if at least 2 platforms (out of HH, CTV, Linear TV) are bought together"]
[]
[null,"Guidelines:"]
[null,"1. CTL premium position to be offered at 25% higher than standard CTL rates."]
[null,"2. PPL Mid Show inventory is only for certain PPL Partners, please check with PRS on availability"]
[null,"3. For generic SUPs a minimum of 14 matches need to be bought (which can be consecutive or all league matches of a franchise)."]
[null,"4. Impression dispersion to follow supply estimates."]
[null,"5. Feasibility to be checked with Customization Team for all plans."]
[null,"6. No match wise commitment"]
[null,"7. No geo specific impressions commitment within a cohort bought by the advertiser"]
[null,"8. Features should be augmented with 1:1 spends on video inventory, if features spends are below 20 Cr in Digital (HH+CTV)."]
[]
[null,"CTV Guidelines:"]
[]
[null,"CTV guidelines for block pricing applicability i.e. 600 CPM"]
[null,"1. Minimum 5 matches to be bought"]
[null,"2. Matches to be bought in minimum block size of 5 matches each"]
[null," - For e.g. 12 matches means 2 blocks, at 15, means 3 blocks & so on"]
[null,"3. Alternate matches can be bought on the condition that advertiser buys a min of 25 league matches in alternate manner"]
[]
[null,"CTV Other Guidelines"]
[null,"1. For any playoffs matches selection, a total of minimum 25 matches to be bought and last 15 has to be consecutive matches"]
[null,"2. For any Opening PT matches (total of 4 matches), a total of minimum 15 matches to be bought and first 10 has to be consecutive matches"]
[null,"3. Impressions dispersion to follow supply estimates"]
[]
[null,"CTV Live Preroll Guidelines"]
[null,"1. Standalone PR deals not allowed"]
[null,"2. Max 5% share of video impressions allowed on Live Preroll for Partners, and 3% for others ; at differential CPM as given above"]
[]
[null,"Match Selection scenarios","# of Min req matches","Consecutive Matches Rule","Rest of Matches in Block of 5 matches","Applicable Rate"]
[null,"Any Matches (excl. Opening PT & POs)",5,5,"Yes",600]
[null,null,5,"-","-",900]
[null,"Any of Opening week PT matches",15,"First 10","Yes",600]
[null,null,15,"First 10","-",900]
[null,"Any of 4 POs",25,"Last 15","Yes",600]
[null,null,25,"Last 15","-",900]
[null,"Any of Opening week PT & Any of 4 POs",25,"First 10 + Last 15","NA",600]
[null,"Any of Opening week PT & Any of 4 POs + Any other match",25,"First 10 + Last 15","Yes",600]
[null,null,25,"First 10 + Last 15","-",900]
[null,"Alternate league matches",25,"NA","NA",600]
[]
[null,"NA - Not applicable"]

{"sheet":"CTV5","index":9,"n_rows":74,"n_cols":9,"rows_kept":74,"cut":false,"hidden":false,"merged":[[1,1,1,5],[1,6,1,8],[62,1,63,1],[64,1,65,1],[66,1,67,1],[69,1,70,1]]}
[]
[null,"IPL 2026 | Connected TV",{"$nulls":4},"150 Cr Package"]
[null,"Type","Classification","Ad Assets","Targeting","Duration\n (in Secs)","Impressions -10s (Mn) / Total Exposures","CPM-10s / Per Exp Cost (INR)","Net Cost\n (INR Cr.)"]
[null,"Live","Video","Mid-Roll*","ROS",10,{"$f":"I4/H4*10^4","v":2178},{"$f":"'[1]CTV Rate Card'!D4","v":600},{"$f":"I8-I6-I7","v":130.68}]
[null,"Live","Video","Pre-Roll","ROS",10,{"$f":"G4*3%","v":65.34},{"$f":"'[1]CTV Rate Card'!D8","v":800},{"$f":"G5*H5/10^4","v":5.2271999999999998}]
[null,"Display Asset","Display","Masthead (on CPM basis)","ROS","NA",150,{"$f":"'[1]CTV Rate Card'!D19","v":400},6]
[null,"Live","Display","Squeezeups","ROS","NA",{"$f":"4*74","v":296},{"$f":"'[1]CTV Rate Card'!D21","v":450000},{"$f":"G7*H7/10^7","v":13.32}]
[{"$nulls":5},"Total Cost (Net) : INR Cr",null,null,150]
[null,"*For CTV, block match buy rates are used."]
[]
[null,"Please Note:"]
[null,"Taxes extra as applicable."]
[null,"This package is subject to BCCI / broadcast / streaming guidelines."]
[null,"Pre-Roll duration - upto 10 sec is allowed"]
[null,"Secondage mentioned for FCT & number of exposures mentioned for graphical elements and segment"]
[null,"Matches considered for Live entitlements, Days considered for PPL entitlements, Episodes considered for Surround Shows, etc."]
[null,"Matches count and PPL Days is subject to final schedule from Board / channel broadcast plan & the days / FCT may change accordingly"]
[null,"No Spot placement request would be entertained"]
[null,"Pushbacks/Squeezeups duration - Max 5 secs"]
[null,"For regional channels, the commercial should be in the respective regional language"]
[null,"Channel mix may change without prior notice"]
[null,"^ Indicative; Subject to Tournament Schedule; Total FCT/Exposures shall vary accordingly"]
[null,"Segments / VODs are limited and hence available on a first come first serve basis only"]
[null,"The Segment and VOD finalised for the advertiser has to be same"]
[null,"Billing will be as per JioStar numbers only; 3rd party trackers should be placed only to track overall numbers"]
[null,"All pricing/costs are Net to JioStar"]
[null,"All the creatives as per specs have to be QC and S&P approved 5 business days in advance of going live"]
[null,"Package is subject to ICC / JioStar guidelines"]
[null,"Inventory in HLs / VODs is on non-exclusive basis"]
[null,"The client understands and agrees that this deal cannot be cancelled either in full or part, at any given point of time from the confirmation time"]
[null,"No per creative / per feed impression guarantee"]
[null,"Segment Duration - 30-45 secs"]
[null,"Segment can be bundled with Co Presenting level only that too if at least 2 platforms (out of HH, CTV, Linear TV) are bought together"]
[]
[null,"Guidelines:"]
[null,"1. CTL premium position to be offered at 25% higher than standard CTL rates."]
[null,"2. PPL Mid Show inventory is only for certain PPL Partners, please check with PRS on availability"]
[null,"3. For generic SUPs a minimum of 14 matches need to be bought (which can be consecutive or all league matches of a franchise)."]
[null,"4. Impression dispersion to follow supply estimates."]
[null,"5. Feasibility to be checked with Customization Team for all plans."]
[null,"6. No match wise commitment"]
[null,"7. No geo specific impressions commitment within a cohort bought by the advertiser"]
[null,"8. Features should be augmented with 1:1 spends on video inventory, if features spends are below 20 Cr in Digital (HH+CTV)."]
[]
[null,"CTV Guidelines:"]
[]
[null,"CTV guidelines for block pricing applicability i.e. 600 CPM"]
[null,"1. Minimum 5 matches to be bought"]
[null,"2. Matches to be bought in minimum block size of 5 matches each"]
[null," - For e.g. 12 matches means 2 blocks, at 15, means 3 blocks & so on"]
[null,"3. Alternate matches can be bought on the condition that advertiser buys a min of 25 league matches in alternate manner"]
[]
[null,"CTV Other Guidelines"]
[null,"1. For any playoffs matches selection, a total of minimum 25 matches to be bought and last 15 has to be consecutive matches"]
[null,"2. For any Opening PT matches (total of 4 matches), a total of minimum 15 matches to be bought and first 10 has to be consecutive matches"]
[null,"3. Impressions dispersion to follow supply estimates"]
[]
[null,"CTV Live Preroll Guidelines"]
[null,"1. Standalone PR deals not allowed"]
[null,"2. Max 5% share of video impressions allowed on Live Preroll for Partners, and 3% for others ; at differential CPM as given above"]
[]
[null,"Match Selection scenarios","# of Min req matches","Consecutive Matches Rule","Rest of Matches in Block of 5 matches","Applicable Rate"]
[null,"Any Matches (excl. Opening PT & POs)",5,5,"Yes",600]
[null,null,5,"-","-",900]
[null,"Any of Opening week PT matches",15,"First 10","Yes",600]
[null,null,15,"First 10","-",900]
[null,"Any of 4 POs",25,"Last 15","Yes",600]
[null,null,25,"Last 15","-",900]
[null,"Any of Opening week PT & Any of 4 POs",25,"First 10 + Last 15","NA",600]
[null,"Any of Opening week PT & Any of 4 POs + Any other match",25,"First 10 + Last 15","Yes",600]
[null,null,25,"First 10 + Last 15","-",900]
[null,"Alternate league matches",25,"NA","NA",600]
[]
[null,"NA - Not applicable"]